bitfinex-derivatives/quotes_BTCF0:USTF0_20241125
["timestamp","ask_amount","ask_price","bid_price","bid_amount"]
[1732507480315,0.29620001,97890.0,97889.0,0.051424]
[1732507481516,0.051021,97895.0,97894.0,0.051021]
[1732507481729,0.051021,97895.0,97891.0,0.051023]
[1732507482017,0.051021,97896.0,97894.0,0.0004]
[1732507482517,0.051021,97896.0,97895.0,0.0004]
[1732507485609,0.51164,97899.0,97898.0,0.051019]
[1732507485809,0.561739,97899.0,97898.0,0.051019]
[1732507486105,0.556729,97899.0,97898.0,0.051419]
[1732507486712,0.401809,97899.0,97898.0,0.051419]
[1732507488218,0.35079,97899.0,97898.0,0.051419]
[1732507489214,0.07143139,97907.0,97898.0,0.0004]
[1732507489417,0.07143139,97907.0,97903.0,0.051016]
[1732507489614,0.07143139,97907.0,97906.0,0.0004]
[1732507491414,0.43223139,97907.0,97895.0,0.30266919]
[1732507491623,0.3608,97896.0,97888.0,0.30266919]
[1732507491917,0.051025,97888.0,97885.0,0.031]
[1732507492217,0.0004,97886.0,97885.0,0.031]
[1732507492412,0.0004,97886.0,97885.0,0.33366919]
[1732507492915,0.0004,97886.0,97885.0,0.031]
[1732507493423,0.0004,97886.0,97885.0,0.33366919]
[1732507494218,0.0004,97886.0,97885.0,0.65079623]
[1732507494417,0.051023,97891.0,97886.0,0.0046]
[1732507494616,0.51072,97896.0,97885.0,0.03152]
[1732507494617,0.15084,97896.0,97885.0,0.03152]
[1732507494807,0.051024,97890.0,97885.0,0.031]
[1732507495011,0.0004,97886.0,97885.0,0.33366919]
[1732507495316,0.0004,97886.0,97885.0,0.34787516]
[1732507495517,0.0004,97886.0,97885.0,0.34791548]
[1732507495813,0.0004,97886.0,97885.0,0.70543764]
[1732507496012,0.04782272,97901.0,97886.0,0.0046]
[1732507496213,0.12196744,97903.0,97890.0,0.3608]
[1732507496415,0.14992,97905.0,97903.0,0.01]
[1732507496634,0.051015,97906.0,97905.0,0.0116]
[1732507496813,0.039415,97906.0,97902.0,0.051017]
[1732507497014,0.12231139,97905.0,97893.0,0.032]
[1732507497209,0.0004,97903.0,97902.0,0.051017]
[1732507497617,0.0004,97903.0,97893.0,0.032]
[1732507497821,0.0004,97903.0,97897.0,0.05102]
[1732507497822,0.051019,97900.0,97897.0,0.05102]
[1732507498012,0.051019,97900.0,97893.0,0.032]
[1732507498325,0.12231139,97901.0,97899.0,0.051019]
[1732507498919,0.17332939,97902.0,97899.0,0.051019]
[1732507499623,0.12231139,97901.0,97899.0,0.051019]
[1732507499822,0.05102,97898.0,97894.0,0.051021]
[1732507500015,0.051021,97896.0,97894.0,0.051021]
[1732507500319,0.0004,97895.0,97894.0,0.051021]
[1732507503219,0.3608,97901.0,97895.0,0.0026]
[1732507503422,0.3578,97901.0,97900.0,0.051018]
[1732507503618,0.3578,97901.0,97900.0,0.052218]
[1732507504222,0.408818,97901.0,97900.0,0.0012]
[1732507504526,0.404218,97901.0,97900.0,0.0012]
[1732507505319,0.402218,97901.0,97900.0,0.0012]
[1732507505827,0.551138,97901.0,97900.0,0.0012]
[1732507506526,0.402218,97901.0,97900.0,0.0012]
[1732507506717,0.3512,97901.0,97900.0,0.052218]
[1732507507521,0.12271139,97903.0,97900.0,0.0012]
[1732507507716,0.0004,97903.0,97901.0,0.051018]
[1732507507922,0.0004,97903.0,97902.0,0.0012]
[1732507510126,0.0921887,97903.0,97902.0,0.0012]
[1732507510331,0.051417,97903.0,97902.0,0.0012]
[1732507510635,0.14320894,97903.0,97902.0,0.0012]
[1732507510934,0.051417,97903.0,97902.0,0.0012]
[1732507511233,0.051417,97903.0,97902.0,0.18429414]
[1732507511431,0.051417,97903.0,97902.0,0.0012]
[1732507511823,0.051417,97903.0,97902.0,0.18429606]
[1732507512130,0.048417,97903.0,97902.0,0.18429606]
[1732507512320,0.048417,97903.0,97902.0,0.0012]
[1732507513622,0.048417,97903.0,97902.0,0.18429606]
[1732507514033,0.048417,97903.0,97902.0,0.0012]
[1732507517333,0.048417,97903.0,97902.0,0.052217]
[1732507519935,0.043417,97903.0,97902.0,0.052217]
[1732507521236,0.14892,97907.0,97903.0,0.00501]
[1732507521428,0.09815897,97910.0,97908.0,0.051014]
[1732507521735,0.09815897,97910.0,97908.0,0.052614]
[1732507521939,0.22054893,97910.0,97908.0,0.052614]
[1732507522440,0.3568,97909.0,97908.0,0.052614]
[1732507522731,0.12238996,97910.0,97908.0,0.052614]
[1732507523133,0.11738996,97910.0,97909.0,0.0016]
[1732507523330,0.15298745,97916.0,97915.0,0.051011]
[1732507523536,0.18358494,97922.0,97915.0,0.36398946]
[1732507523736,0.18358494,97922.0,97921.0,0.051007]
[1732507523936,0.36172,97929.0,97926.0,0.051005]
[1732507524132,0.3608,97929.0,97926.0,0.051005]
[1732507524334,0.3608,97929.0,97928.0,0.0016]
[1732507524727,0.14892,97931.0,97929.0,0.051003]
[1732507524933,0.21418243,97933.0,97932.0,0.051002]
[1732507525136,0.20918243,97933.0,97932.0,0.051002]
[1732507525440,0.0204196,97938.0,97933.0,0.005]
[1732507525841,0.0204196,97938.0,97934.0,0.00989123]
[1732507526138,0.00552837,97938.0,97937.0,0.0016]
[1732507526729,0.00564727,97938.0,97937.0,0.0016]
[1732507528737,0.0001189,97938.0,97937.0,0.0016]
[1732507528932,0.3608,97944.0,97938.0,0.0048811]
[1732507529143,0.3559189,97944.0,97943.0,0.050996]
[1732507529346,0.3459289,97944.0,97943.0,0.052596]
[1732507529544,0.34103891,97944.0,97943.0,0.052596]
[1732507530046,0.00011429,97945.0,97944.0,0.050995]
[1732507530238,0.13902535,97961.0,97952.0,0.050991]
[1732507530537,0.050987,97961.0,97960.0,0.0016]
[1732507531336,0.07148787,97961.0,97960.0,0.0016]
[1732507531536,0.3608,97969.0,97961.0,0.00490656]
[1732507531742,0.050979,97976.0,97960.0,0.0016]
[1732507531743,0.050979,97976.0,97969.0,0.00490656]
[1732507531944,0.050979,97976.0,97971.0,0.00490656]
[1732507532243,0.50968,97977.0,97975.0,0.0016]
[1732507532444,0.050979,97976.0,97975.0,0.0016]
[1732507532744,0.05098,97975.0,97968.0,0.050983]
[1732507532949,0.05098,97974.0,97968.0,0.050983]
[1732507533143,0.0004,97969.0,97968.0,0.050983]
[1732507537051,0.051382,97969.0,97968.0,0.050983]
[1732507539653,0.050985,97965.0,97961.0,0.050986]
[1732507539956,0.050985,97965.0,97963.0,0.050985]
[1732507541459,0.3608,97968.0,97948.0,0.15128]
[1732507541644,0.3608,97968.0,97950.0,0.3608]
[1732507541841,0.050986,97962.0,97960.0,0.050987]
[1732507545348,0.050986,97962.0,97950.0,0.3608]
[1732507545349,0.050987,97960.0,97955.0,0.05099]
[1732507545549,0.050987,97960.0,97956.0,0.050989]
[1732507546257,0.050987,97960.0,97958.0,0.050988]
[1732507547842,0.3608,97960.0,97950.0,0.3608]
[1732507548049,0.050991,97954.0,97952.0,0.050991]
[1732507549346,0.43070496,97960.0,97950.0,0.3608]
[1732507549549,0.050992,97951.0,97950.0,0.3608]
[1732507549747,0.050995,97945.0,97944.0,0.00011054]
[1732507550152,0.051395,97945.0,97944.0,0.00011054]
[1732507557253,0.035395,97945.0,97944.0,0.00011054]
[1732507558958,0.341675,97945.0,97944.0,0.00011054]
[1732507559259,1.841675,97945.0,97944.0,0.00011054]
[1732507559762,0.341675,97945.0,97944.0,0.00011054]
[1732507560664,0.035395,97945.0,97944.0,0.00011054]
[1732507561365,0.05580279,97945.0,97944.0,0.00011054]
[1732507562558,0.20376279,97945.0,97944.0,0.00011054]
[1732507563962,0.20277279,97945.0,97944.0,0.00011054]
[1732507565872,0.20077279,97945.0,97944.0,0.00011054]
[1732507566666,0.19877279,97945.0,97944.0,0.00011054]
[1732507566866,0.05081279,97945.0,97944.0,0.00011054]
[1732507567061,0.19877279,97945.0,97944.0,0.00011054]
[1732507567866,0.05081279,97945.0,97944.0,0.00011054]
[1732507568066,0.19877279,97945.0,97944.0,0.05110554]
[1732507568569,0.19877279,97945.0,97944.0,0.00011054]
[1732507568865,0.19877279,97945.0,97944.0,0.05110554]
[1732507568866,0.02040779,97945.0,97944.0,0.05110554]
[1732507569172,0.3608,97948.0,97944.0,0.00011054]
[1732507569173,0.14796,97948.0,97944.0,0.00011054]
[1732507569368,0.13836,97948.0,97947.0,0.050994]
[1732507569760,0.050992,97950.0,97948.0,0.050993]
[1732507569959,0.050992,97950.0,97944.0,0.00011054]
[1732507569960,0.050992,97950.0,97949.0,0.050993]
[1732507570167,0.050992,97950.0,97949.0,0.052993]
[1732507571271,0.14796,97952.0,97951.0,0.050992]
[1732507571568,0.14796,97952.0,97951.0,0.052992]
[1732507571961,0.14796,97952.0,97951.0,0.23561875]
[1732507572163,0.14796,97952.0,97951.0,0.052992]
[1732507572368,0.02040995,97955.0,97951.0,0.002]
[1732507572564,0.01600995,97955.0,97953.0,0.2336428]
[1732507572872,0.06699995,97955.0,97954.0,0.002]
[1732507574369,0.050991,97952.0,97948.0,0.14339903]
[1732507574570,0.050994,97946.0,97933.0,0.0016]
[1732507574769,0.17846,97945.0,97933.0,0.0016]
[1732507575264,0.48474,97945.0,97933.0,0.0016]
[1732507575464,0.051001,97934.0,97933.0,0.0016]
[1732507575767,0.560161,97934.0,97933.0,0.0016]
[1732507575977,0.05101,97917.0,97915.0,0.24333018]
[1732507576170,0.05101,97916.0,97910.0,0.24333018]
[1732507576473,0.00160001,97911.0,97906.0,0.27563018]
[1732507576670,0.051015,97907.0,97906.0,0.0323]
[1732507576975,0.05261501,97907.0,97906.0,0.0323]
[1732507579171,0.05261501,97907.0,97906.0,0.27563018]
[1732507579469,0.05261501,97907.0,97906.0,0.27602626]
[1732507579871,0.04761501,97907.0,97906.0,0.0323]
[1732507580071,0.00160001,97907.0,97906.0,0.2760119]
[1732507580269,0.00160001,97907.0,97906.0,0.0323]
[1732507580770,0.00012709,97915.0,97912.0,0.051012]
[1732507580973,0.02041491,97919.0,97915.0,0.0032829]
[1732507581174,0.01713202,97919.0,97916.0,0.0317]
[1732507581477,0.01713202,97919.0,97917.0,0.051009]
[1732507581478,0.01214201,97919.0,97917.0,0.051009]
[1732507581973,0.00010203,97918.0,97917.0,0.051009]
[1732507582571,0.06990496,97940.0,97924.0,0.051006]
[1732507582572,0.051005,97927.0,97924.0,0.051006]
[1732507582770,0.04609704,97927.0,97918.0,0.29467666]
[1732507582969,0.14796,97932.0,97926.0,0.0004]
[1732507583176,0.14796,97932.0,97929.0,0.051003]
[1732507583484,8.345e-05,97931.0,97926.0,0.0004]
[1732507583774,0.051004,97928.0,97926.0,0.0004]
[1732507583966,0.051006,97925.0,97921.0,0.24366766]
[1732507584280,0.0004,97922.0,97921.0,0.24366766]
[1732507585181,0.051007,97921.0,97919.0,0.24366766]
[1732507585476,0.0004,97920.0,97919.0,0.24366766]
[1732507585673,0.0004,97920.0,97917.0,0.0332]
[1732507585674,0.0004,97920.0,97917.0,0.27686766]
[1732507585869,0.051408,97920.0,97917.0,0.0332]
[1732507586176,0.0004,97918.0,97917.0,0.0332]
[1732507587981,0.0004,97918.0,97917.0,0.27686766]
[1732507588170,0.0004,97918.0,97917.0,0.0332]
[1732507588372,0.0004,97918.0,97917.0,0.27686426]
[1732507588581,0.0004,97918.0,97917.0,0.27687294]
[1732507588971,0.0004,97918.0,97917.0,0.0332]
[1732507589584,0.051007,97922.0,97918.0,0.0046]
[1732507589771,0.046007,97922.0,97919.0,0.2436605]
[1732507590283,0.051008,97921.0,97919.0,0.2436605]
[1732507591976,0.14796,97927.0,97919.0,0.2436605]
[1732507592282,0.14796,97927.0,97926.0,0.0004]
[1732507593174,0.14536,97927.0,97926.0,0.0004]
[1732507594505,0.14336,97927.0,97926.0,0.0004]
[1732507595301,0.13336,97927.0,97926.0,0.0004]
[1732507596007,0.3608,97930.0,97926.0,0.0004]
[1732507596201,0.3558,97930.0,97929.0,0.051003]
[1732507596404,0.3558,97930.0,97929.0,0.051403]
[1732507596798,8.345e-05,97931.0,97929.0,0.051403]
[1732507597199,8.345e-05,97931.0,97930.0,0.0004]
[1732507601709,8.345e-05,97931.0,97930.0,0.051403]
[1732507603399,8.345e-05,97931.0,97930.0,0.2950635]
[1732507603995,8.345e-05,97931.0,97930.0,0.0004]
[1732507604195,8.345e-05,97931.0,97921.0,0.2436605]
[1732507604196,0.051003,97930.0,97921.0,0.2436605]
[1732507604395,0.3608,97922.0,97921.0,0.2436605]
[1732507604601,0.051011,97915.0,97914.0,0.2440605]
[1732507604807,0.051011,97915.0,97914.0,0.0004]
[1732507605010,0.051411,97915.0,97914.0,0.0004]
[1732507605308,0.051411,97915.0,97914.0,0.24453081]
[1732507605506,0.051411,97915.0,97914.0,0.0004]
[1732507610001,0.09759614,97915.0,97914.0,0.0004]
[1732507612300,0.21971425,97915.0,97914.0,0.0004]
[1732507612504,0.21969681,97915.0,97914.0,0.0004]
[1732507612708,0.09759614,97915.0,97914.0,0.0004]
[1732507614012,0.45839614,97915.0,97914.0,0.0004]
[1732507614416,0.046411,97915.0,97914.0,0.0004]
[1732507614714,0.196211,97915.0,97914.0,0.0004]
[1732507615846,0.046411,97915.0,97914.0,0.0004]
[1732507616009,0.0004,97915.0,97914.0,0.0004]
[1732507617013,0.05101,97916.0,97915.0,0.00461]
[1732507617215,0.04640001,97916.0,97914.0,0.0004]
[1732507617415,0.04640001,97916.0,97915.0,0.00040001]
[1732507618408,0.1498,97919.0,97918.0,0.051009]
[1732507618809,0.1498,97919.0,97918.0,0.05140901]
[1732507619113,0.1448,97919.0,97918.0,0.05140901]
[1732507620218,0.3608,97929.0,97928.0,0.051004]
[1732507620512,0.3558,97929.0,97928.0,0.05140401]
[1732507623813,0.3608,97929.0,97928.0,0.05140401]
[1732507624320,0.051003,97930.0,97928.0,0.29498131]
[1732507624510,0.051003,97930.0,97928.0,0.05140401]
[1732507624713,0.051003,97930.0,97929.0,0.00040001]
[1732507625024,0.15052,97943.0,97930.0,0.051003]
[1732507625314,0.3608,97947.0,97930.0,0.051003]
[1732507625315,0.3608,97947.0,97944.0,0.050995]
[1732507625517,0.40687745,97947.0,97945.0,0.050995]
[1732507625720,0.40687745,97947.0,97946.0,0.00040001]
[1732507625914,0.40188745,97947.0,97946.0,0.00040001]
[1732507626115,0.35089345,97947.0,97946.0,0.00040001]
[1732507626309,0.35102606,97947.0,97946.0,0.00040001]
[1732507627823,0.15048,97968.0,97947.0,0.05587139]
[1732507628017,0.15048,97968.0,97961.0,0.050986]
[1732507628323,0.15048,97968.0,97948.0,0.4228]
[1732507628324,0.14600262,97968.0,97967.0,0.00080001]
[1732507628821,0.14609659,97968.0,97967.0,0.00080001]
[1732507629429,9.397e-05,97968.0,97967.0,0.00080001]
[1732507629719,0.15057397,97968.0,97967.0,0.00080001]
[1732507629922,0.17098038,97968.0,97967.0,0.00080001]
[1732507630714,9.397e-05,97968.0,97967.0,0.00080001]
[1732507630920,0.3608,97977.0,97976.0,0.050979]
[1732507631321,0.04722638,97979.0,97978.0,0.050978]
[1732507631620,0.17088641,97984.0,97983.0,0.050975]
[1732507631820,0.17096366,97984.0,97983.0,0.050975]
[1732507632020,0.16096366,97984.0,97983.0,0.05177501]
[1732507632520,0.01048366,97984.0,97983.0,0.05177501]
[1732507632725,0.16096366,97984.0,97983.0,0.05177501]
[1732507633315,0.17064738,97984.0,97983.0,0.05177501]
[1732507633619,0.17060738,97984.0,97983.0,0.05177501]
[1732507634012,0.02016738,97984.0,97983.0,0.05177501]
[1732507634218,0.00976097,97984.0,97983.0,0.05177501]
[1732507639726,0.00476097,97984.0,97983.0,0.05177501]
[1732507640723,0.12040641,98000.0,97995.0,0.050969]
[1732507640930,0.506118,97996.0,97995.0,0.050969]
[1732507641223,0.50136801,97996.0,97995.0,0.05176901]
[1732507642228,0.50136801,97996.0,97995.0,0.00080001]
[1732507642425,0.35092801,97996.0,97995.0,0.00080001]
[1732507642631,0.50136801,97996.0,97995.0,0.00080001]
[1732507643620,0.35092801,97996.0,97995.0,0.00080001]
[1732507643822,0.50136801,97996.0,97995.0,0.00080001]
[1732507645030,0.54930253,97996.0,97995.0,0.00080001]
[1732507645823,0.54505253,97996.0,97995.0,0.00080001]
[1732507646536,0.54005253,97996.0,97995.0,0.00080001]
[1732507646825,0.49211801,97996.0,97995.0,0.00080001]
[1732507647628,0.33667801,97996.0,97995.0,0.00080001]
[1732507649825,0.00011703,97996.0,97995.0,0.00080001]
[1732507651233,0.14551703,97996.0,97995.0,0.00080001]
[1732507652239,0.14564893,97996.0,97995.0,0.00080001]
[1732507652633,0.15546667,97996.0,97995.0,0.00080001]
[1732507653926,0.00994964,97996.0,97995.0,0.00080001]
[1732507654439,0.00996587,97996.0,97995.0,0.00080001]
[1732507655433,0.1,98000.0,97995.0,0.36160001]
[1732507655737,0.14198152,98016.0,97995.0,0.36160001]
[1732507655738,0.09118133,98008.0,98006.0,0.050963]
[1732507655930,0.04783962,98021.0,98019.0,0.050956]
[1732507656132,0.09118133,98027.0,98018.0,0.3608]
[1732507656338,0.0329,98026.0,98024.0,0.050953]
[1732507656531,0.02797475,98026.0,98024.0,0.050953]
[1732507656729,0.02297475,98026.0,98024.0,0.050953]
[1732507661041,0.12181923,98025.0,98024.0,0.050953]
[1732507661347,7.475e-05,98026.0,98024.0,0.050953]
[1732507661735,7.475e-05,98026.0,98025.0,0.00080001]
[1732507677047,0.050952,98027.0,98026.0,0.00492525]
[1732507677353,0.04602675,98027.0,98026.0,0.00080001]
[1732507677949,0.050959,98015.0,98011.0,0.050961]
[1732507678250,0.09558932,98027.0,97997.0,0.3608]
[1732507678251,0.00011884,98014.0,98013.0,0.05096]
[1732507678950,0.09151452,98014.0,98013.0,0.05096]
[1732507679152,0.0915144,98014.0,98013.0,0.05096]
[1732507679354,0.00011884,98014.0,98013.0,0.05096]
[1732507680349,0.00011884,98014.0,97997.0,0.0303]
[1732507680350,0.12193552,98014.0,97997.0,0.0303]
[1732507680551,0.09143652,98006.0,97997.0,0.0303]
[1732507680749,0.0004,97998.0,97997.0,0.081268]
[1732507684549,0.0004,97998.0,97997.0,0.38119955]
[1732507686354,0.00011884,98014.0,98013.0,0.05096]
[1732507686553,0.14472,98015.0,98014.0,0.00448116]
[1732507686753,0.09143652,98016.0,98015.0,0.05544016]
[1732507686954,0.23167536,98016.0,98015.0,0.050959]
[1732507687158,0.23167536,98016.0,98015.0,0.051359]
[1732507687358,0.14472,98016.0,98015.0,0.051359]
[1732507687658,0.14485769,98016.0,98015.0,0.051359]
[1732507688959,0.14485769,98016.0,98015.0,0.0004]
[1732507691057,0.26667437,98016.0,98015.0,0.0004]
[1732507693056,0.26694217,98016.0,98015.0,0.0004]
[1732507693257,9.769e-05,98016.0,98015.0,0.0004]
[1732507693564,0.14485769,98016.0,98015.0,0.0004]
[1732507693772,0.45093769,98016.0,98000.0,0.24306707]
[1732507694066,0.45093769,98016.0,97992.0,0.00052]
[1732507694067,0.05097,97993.0,97992.0,0.00052]
[1732507694267,0.050971,97991.0,97980.0,0.24306707]
[1732507694563,0.050971,97991.0,97990.0,0.050971]
[1732507695960,0.0319,97992.0,97981.0,0.0317]
[1732507696165,0.3608,97991.0,97979.0,0.3608]
[1732507696367,0.050975,97985.0,97984.0,0.050974]
[1732507698269,0.050978,97977.0,97974.0,0.18236892]
[1732507698565,0.0301,97990.0,97974.0,8.237e-05]
[1732507698566,0.050979,97976.0,97974.0,8.237e-05]
[1732507698767,0.14476,97975.0,97974.0,8.237e-05]
[1732507699167,0.14516,97975.0,97974.0,8.237e-05]
[1732507701768,0.0004,97975.0,97974.0,8.237e-05]
[1732507701970,0.0004,97975.0,97974.0,0.05106237]
[1732507702675,0.1452,97975.0,97974.0,0.05106237]
[1732507702872,0.1452,97975.0,97974.0,8.237e-05]
[1732507703459,0.1402,97975.0,97974.0,8.237e-05]
[1732507703670,0.18427883,97975.0,97974.0,8.237e-05]
[1732507705163,0.18427883,97975.0,97974.0,0.05106237]
[1732507706669,0.18427883,97975.0,97974.0,8.237e-05]
[1732507707677,0.18887883,97975.0,97974.0,8.237e-05]
[1732507707973,0.16520248,97975.0,97974.0,8.237e-05]
[1732507710774,0.16520248,97975.0,97974.0,0.05106237]
[1732507711375,0.3608,97982.0,97974.0,8.237e-05]
[1732507711675,0.3558,97982.0,97981.0,0.050976]
[1732507711874,0.1448,97987.0,97986.0,0.050974]
[1732507712073,0.1448,97993.0,97990.0,0.050972]
[1732507712470,0.1448,97993.0,97990.0,0.051372]
[1732507712878,0.52599325,97991.0,97990.0,0.051372]
[1732507713486,0.3568,97991.0,97990.0,0.051372]
[1732507714280,0.14076,98000.0,97991.0,0.050971]
[1732507714480,0.14076,98000.0,97990.0,0.051372]
[1732507714686,0.14076,98000.0,97999.0,0.0004]
[1732507714887,0.3618,98002.0,98001.0,0.050966]
[1732507715080,0.3558,98002.0,98001.0,0.050966]
[1732507715278,0.3558,98002.0,98001.0,0.051366]
[1732507715589,0.50156,98015.0,98014.0,0.050959]
[1732507715774,0.52195907,98015.0,98014.0,0.050959]
[1732507715972,0.38119907,98015.0,98014.0,0.051359]
[1732507716177,0.02039907,98015.0,98014.0,0.051359]
[1732507716785,0.01839907,98015.0,98014.0,0.051359]
[1732507717486,0.01839907,98015.0,98014.0,0.412159]
[1732507718083,0.01639907,98015.0,98014.0,0.412159]
[1732507718897,0.01539907,98015.0,98014.0,0.412159]
[1732507719683,0.01038907,98015.0,98014.0,0.412159]
[1732507720181,0.01038907,98015.0,98014.0,0.051359]
[1732507721084,0.01038907,98015.0,98014.0,0.412159]
[1732507721785,0.01038907,98015.0,98014.0,0.051359]
[1732507723981,0.01038907,98015.0,98014.0,0.412159]
[1732507725484,0.01038907,98015.0,98014.0,0.0004]
[1732507725678,0.06134807,98015.0,98014.0,0.0004]
[1732507726083,0.06134807,98015.0,98002.0,0.3608]
[1732507726084,0.01038907,98015.0,98002.0,0.3608]
[1732507726288,0.050963,98007.0,98004.0,0.050964]
[1732507726589,0.17202,98006.0,98004.0,0.050964]
[1732507726994,0.222984,98006.0,98004.0,0.050964]
[1732507728983,0.17202,98006.0,97993.0,0.18173547]
[1732507729186,0.050966,98002.0,97998.0,0.050967]
[1732507729492,0.17202,98006.0,97999.0,0.050967]
[1732507729493,0.050966,98000.0,97999.0,0.050967]
[1732507730797,0.083864,98005.0,98003.0,0.050965]
[1732507731002,0.0329,98005.0,98003.0,0.050965]
[1732507731184,0.0329,98005.0,98004.0,0.0004]
[1732507736489,0.050974,97986.0,97985.0,0.050974]
[1732507736794,0.050974,97986.0,97967.0,0.40617045]
[1732507736795,0.050979,97975.0,97973.0,0.05098]
[1732507736994,0.191699,97975.0,97973.0,0.05098]
[1732507737190,0.192099,97975.0,97973.0,0.05098]
[1732507739999,0.187109,97975.0,97973.0,0.05098]
[1732507740197,0.14112,97975.0,97973.0,0.05098]
[1732507740787,0.0004,97975.0,97973.0,0.05098]
[1732507740998,0.14112,97975.0,97973.0,0.23271547]
[1732507741193,0.13612,97975.0,97973.0,0.23271547]
[1732507741497,0.3608,97979.0,97978.0,0.050978]
[1732507741799,0.14072,97982.0,97980.0,0.050976]
[1732507742190,0.186686,97982.0,97981.0,0.0004]
[1732507742699,0.547486,97982.0,97981.0,0.0004]
[1732507742894,0.5903106,97982.0,97981.0,0.0004]
[1732507744298,0.1835446,97982.0,97981.0,0.0004]
[1732507744495,0.20394751,97982.0,97981.0,0.0004]
[1732507745502,0.02040291,97982.0,97981.0,0.0004]
[1732507745694,0.50516,97990.0,97989.0,0.050972]
[1732507745994,0.082868,97997.0,97989.0,0.050972]
[1732507745995,0.0319,97997.0,97989.0,0.412172]
[1732507746197,0.17626,97997.0,97996.0,0.050968]
[1732507746405,0.19666291,97997.0,97996.0,0.051368]
[1732507746591,0.05230291,97997.0,97996.0,0.051368]
[1732507747497,0.04730291,97997.0,97996.0,0.051368]
[1732507758200,0.04730291,97997.0,97996.0,0.23353158]
[1732507758201,0.02040291,97997.0,97996.0,0.23353158]
[1732507758402,0.02040291,97997.0,97996.0,0.051368]
[1732507758804,0.01540291,97997.0,97996.0,0.051368]
[1732507759301,0.0662,98008.0,98007.0,0.050963]
[1732507759501,0.20056,98008.0,98007.0,0.050963]
[1732507759703,0.20056,98008.0,98007.0,0.051363]
[1732507759704,0.17736,98008.0,98007.0,0.051363]
[1732507760100,0.083962,98008.0,98007.0,0.0004]
[1732507760403,0.223322,98008.0,98007.0,0.0004]
[1732507760599,0.223322,98008.0,98007.0,0.18271367]
[1732507760799,0.223322,98008.0,98007.0,0.0004]
[1732507761394,0.223322,98008.0,98007.0,0.18271367]
[1732507762495,0.223322,98008.0,98007.0,0.0004]
[1732507762700,0.256222,98008.0,98007.0,0.0004]
[1732507765105,0.251222,98008.0,98007.0,0.0004]
[1732507769309,0.612022,98008.0,98007.0,0.0004]
[1732507769510,0.73412687,98008.0,98007.0,0.0004]
[1732507771312,0.612022,98008.0,98007.0,0.0004]
[1732507773711,0.612022,98008.0,98007.0,0.24346707]
[1732507774414,0.612022,98008.0,98007.0,0.0004]
[1732507775113,0.607222,98008.0,98007.0,0.0004]
[1732507777109,0.86234,98008.0,98005.0,0.14396518]
[1732507777416,0.86234,98008.0,97999.0,0.18256398]
[1732507777417,0.36120001,98006.0,97999.0,0.18256398]
[1732507777608,0.050967,97999.0,97996.0,0.18256398]
[1732507777809,0.050973,97987.0,97985.0,0.35480784]
[1732507778022,0.13956,97986.0,97985.0,0.35480784]
[1732507778209,0.13996001,97986.0,97985.0,0.66312725]
[1732507778411,0.50076001,97986.0,97985.0,0.050974]
[1732507780013,0.050976,97981.0,97979.0,0.35532814]
[1732507780210,0.050976,97981.0,97979.0,0.050977]
[1732507780405,0.00040001,97980.0,97979.0,0.050977]
[1732507781513,0.00040001,97980.0,97979.0,0.23343967]
[1732507781910,0.00040001,97980.0,97979.0,0.050977]
[1732507782307,0.050979,97975.0,97974.0,8.237e-05]
[1732507782511,0.551339,97975.0,97974.0,8.237e-05]
[1732507782903,0.67362102,97975.0,97974.0,8.237e-05]
[1732507783407,0.55173901,97975.0,97974.0,8.237e-05]
[1732507786510,0.59645321,97975.0,97974.0,8.237e-05]
[1732507787409,0.59145321,97975.0,97974.0,8.237e-05]
[1732507790219,0.45189321,97975.0,97974.0,8.237e-05]
[1732507790419,0.58649321,97975.0,97974.0,8.237e-05]
[1732507791015,0.59465321,97975.0,97974.0,8.237e-05]
[1732507791820,0.54993901,97975.0,97974.0,8.237e-05]
[1732507792612,0.55809901,97975.0,97974.0,8.237e-05]
[1732507792920,0.41649901,97975.0,97974.0,8.237e-05]
[1732507793128,0.55609901,97975.0,97974.0,8.237e-05]
[1732507794121,0.55309901,97975.0,97974.0,8.237e-05]
[1732507795022,0.40849901,97975.0,97974.0,8.237e-05]
[1732507795222,0.54809901,97975.0,97974.0,8.237e-05]
[1732507797223,0.55236901,97975.0,97974.0,8.237e-05]
[1732507797533,0.19156901,97975.0,97974.0,8.237e-05]
[1732507800631,0.55236901,97975.0,97974.0,8.237e-05]
[1732507803228,0.54736901,97975.0,97974.0,8.237e-05]
[1732507803829,0.38179001,97975.0,97974.0,8.237e-05]
[1732507804131,0.01599001,97975.0,97974.0,8.237e-05]
[1732507804334,0.01098001,97975.0,97974.0,8.237e-05]
[1732507804636,0.01059002,97975.0,97974.0,8.237e-05]
[1732507804933,0.00598001,97975.0,97974.0,8.237e-05]
[1732507805524,0.00427,97975.0,97974.0,0.05106237]
[1732507805720,0.00198001,97975.0,97974.0,0.05106237]
[1732507807436,0.00198001,97975.0,97974.0,0.35541351]
[1732507808135,0.00198001,97975.0,97974.0,0.35726237]
[1732507808334,0.3608,97986.0,97974.0,0.35726237]
[1732507808335,0.3608,97986.0,97975.0,0.3102]
[1732507808628,0.3558,97986.0,97985.0,0.051374]
[1732507809025,0.35180001,97986.0,97985.0,0.051374]
[1732507809326,0.09157493,97993.0,97985.0,0.0004]
[1732507809631,0.20549341,97996.0,97993.0,0.05097]
[1732507809632,0.09157493,97994.0,97993.0,0.05097]
[1732507809834,0.16108204,97996.0,97994.0,0.005]
[1732507809835,0.09157493,97995.0,97994.0,0.005]
[1732507810031,0.16730204,97996.0,97995.0,0.055969]
[1732507810234,0.16230204,97996.0,97995.0,0.050969]
[1732507810529,0.25189279,97996.0,97995.0,0.050969]
[1732507810725,0.16030204,97996.0,97995.0,0.050969]
[1732507810924,0.16030204,97996.0,97995.0,0.051369]
[1732507811124,0.25189273,97996.0,97995.0,0.051369]
[1732507812142,0.16030204,97996.0,97995.0,0.23359877]
[1732507812438,0.16030204,97996.0,97995.0,0.051369]
[1732507812635,0.15830204,97996.0,97995.0,0.051369]
[1732507813135,0.01762204,97996.0,97995.0,0.051369]
[1732507813628,0.01762204,97996.0,97995.0,0.23359877]